bitfinex/quotes_BTCUSD_20250101
["timestamp","ask_amount","ask_price","bid_price","bid_amount"]
[1735731451070,8.53e-05,93583.0,93582.0,0.40315036]
[1735731451580,8.53e-05,93583.0,93582.0,0.40015036]
[1735731451919,8.53e-05,93583.0,93582.0,0.40315036]
[1735731452148,8.53e-05,93583.0,93582.0,0.42615036]
[1735731452408,8.53e-05,93583.0,93582.0,0.52615036]
[1735731452923,8.53e-05,93583.0,93582.0,0.51415036]
[1735731453157,8.53e-05,93583.0,93582.0,0.52715036]
[1735731453410,8.53e-05,93583.0,93582.0,0.51815036]
[1735731453839,8.53e-05,93583.0,93582.0,0.52715036]
[1735731454066,0.213667,93604.0,93603.0,0.1577]
[1735731454290,0.213667,93604.0,93603.0,0.26168632]
[1735731454515,0.213667,93604.0,93603.0,0.29723053]
[1735731455974,0.213667,93604.0,93603.0,0.30323053]
[1735731456193,0.213667,93604.0,93603.0,0.30523053]
[1735731457245,0.213667,93604.0,93603.0,0.26968632]
[1735731457489,0.213667,93604.0,93603.0,0.36344212]
[1735731461233,0.213667,93604.0,93603.0,0.26968632]
[1735731462496,0.213667,93604.0,93603.0,0.36344212]
[1735731462717,0.213667,93604.0,93603.0,0.26968632]
[1735731463155,0.213667,93604.0,93603.0,0.36344212]
[1735731463404,0.213667,93604.0,93603.0,0.26968632]
[1735731463636,0.213667,93604.0,93603.0,0.36344212]
[1735731464130,0.2137523,93604.0,93603.0,0.36344212]
[1735731464379,0.2137523,93604.0,93603.0,0.26968632]
[1735731464635,0.2137523,93604.0,93603.0,0.36344212]
[1735731466082,0.2137523,93604.0,93603.0,0.26968632]
[1735731466315,0.2137523,93604.0,93603.0,0.36344212]
[1735731467722,0.2137523,93604.0,93603.0,0.26968632]
[1735731468163,0.2137523,93604.0,93603.0,0.36344212]
[1735731468488,0.2137523,93604.0,93603.0,0.26968632]
[1735731469298,0.2137523,93604.0,93603.0,0.36344212]
[1735731471999,0.2137523,93604.0,93603.0,0.35544212]
[1735731472193,0.2137523,93604.0,93603.0,0.36444212]
[1735731475226,0.2137523,93604.0,93603.0,0.36244212]
[1735731475672,0.2137523,93604.0,93603.0,0.35744212]
[1735731475852,0.2137523,93604.0,93603.0,0.36344212]
[1735731476092,0.2137523,93604.0,93603.0,0.35544212]
[1735731476475,0.2137523,93604.0,93603.0,0.36344212]
[1735731477734,0.2137523,93604.0,93603.0,0.14198632]
[1735731478096,0.21489957,93604.0,93603.0,0.22974212]
[1735731478340,0.21489957,93604.0,93603.0,0.22774212]
[1735731478540,0.2137523,93604.0,93603.0,0.23674212]
[1735731478720,0.2137523,93604.0,93603.0,0.22974212]
[1735731479135,0.2137523,93604.0,93603.0,0.22874212]
[1735731479969,0.2137523,93604.0,93603.0,0.22774212]
[1735731480191,0.2137523,93604.0,93603.0,0.22874212]
[1735731481996,8.53e-05,93604.0,93603.0,0.22774212]
[1735731482233,0.2137523,93604.0,93603.0,0.22874212]
[1735731482711,0.2137523,93604.0,93603.0,0.22774212]
[1735731482901,0.2137523,93604.0,93603.0,0.22874212]
[1735731484166,0.2137523,93604.0,93603.0,0.13498632]
[1735731488760,0.3637523,93604.0,93603.0,0.13398632]
[1735731488947,0.3637523,93604.0,93603.0,0.13598632]
[1735731489444,0.3637523,93604.0,93603.0,0.13398632]
[1735731489637,0.3637523,93604.0,93603.0,0.13598632]
[1735731492973,8.53e-05,93605.0,93603.0,0.13598632]
[1735731493215,8.53e-05,93605.0,93604.0,0.13398632]
[1735731496400,8.53e-05,93605.0,93604.0,0.13598632]
[1735731501897,8.53e-05,93605.0,93604.0,0.13398632]
[1735731502162,8.53e-05,93605.0,93604.0,0.13498632]
[1735731502633,8.53e-05,93605.0,93604.0,0.13398632]
[1735731502770,8.53e-05,93605.0,93604.0,0.13598632]
[1735731505212,0.08989884,93607.0,93604.0,0.13598632]
[1735731505427,0.213663,93605.0,93604.0,0.13598632]
[1735731506102,0.213663,93605.0,93604.0,0.13398632]
[1735731506356,0.213663,93605.0,93604.0,0.13498632]
[1735731506751,0.213663,93605.0,93604.0,0.13398632]
[1735731506947,0.213663,93605.0,93604.0,0.13598632]
[1735731511651,0.213663,93605.0,93604.0,0.26925692]
[1735731511884,0.2137483,93605.0,93604.0,0.26925692]
[1735731516179,0.2137483,93605.0,93604.0,0.26725692]
[1735731516642,0.2137483,93605.0,93604.0,0.26825692]
[1735731516881,0.2137483,93605.0,93604.0,0.26725692]
[1735731517076,0.2137483,93605.0,93604.0,0.26925692]
[1735731519727,0.2137483,93605.0,93604.0,0.30559231]
[1735731520281,0.2137483,93605.0,93604.0,0.26925692]
[1735731520905,0.2137483,93605.0,93604.0,0.26725692]
[1735731522353,0.2137483,93605.0,93604.0,0.26925692]
[1735731525092,0.2137483,93605.0,93604.0,0.18605692]
[1735731525868,0.2137483,93605.0,93604.0,0.13615692]
[1735731526065,0.2137483,93605.0,93604.0,0.13415692]
[1735731526479,0.2137483,93605.0,93604.0,0.13615692]
[1735731527313,0.2137483,93605.0,93604.0,0.13415692]
[1735731527532,0.2137483,93605.0,93604.0,0.13615692]
[1735731528396,0.2137483,93605.0,93604.0,0.0321706]
[1735731529388,0.2137483,93605.0,93604.0,0.0001706]
[1735731532222,0.213653,93610.0,93604.0,0.0001706]
[1735731532430,0.213659,93607.0,93604.0,0.0001706]
[1735731533743,0.213663,93605.0,93604.0,0.0001706]
[1735731544744,0.213663,93605.0,93604.0,0.0301706]
[1735731545786,0.213663,93605.0,93604.0,0.0001706]
[1735731546556,0.213663,93605.0,93604.0,0.1098706]
[1735731556076,0.213663,93605.0,93604.0,0.0001706]
[1735731558347,0.427327,93605.0,93602.0,0.02646656]
[1735731559470,0.213663,93605.0,93604.0,0.0001706]
[1735731561954,0.213663,93605.0,93604.0,0.0031706]
[1735731564239,0.363663,93605.0,93604.0,0.0001706]
[1735731564447,0.363663,93605.0,93604.0,0.0021706]
[1735731571968,0.15,93606.0,93604.0,0.0021706]
[1735731572191,0.15,93606.0,93602.0,0.02594807]
[1735731572388,0.427328,93605.0,93603.0,0.02594807]
[1735731574461,0.577328,93605.0,93604.0,0.002]
[1735731574684,0.577328,93605.0,93603.0,0.02594807]
[1735731575120,0.577328,93605.0,93603.0,0.02794807]
[1735731581785,0.577328,93605.0,93603.0,0.02611867]
[1735731581985,0.5774133,93605.0,93603.0,0.02811867]
[1735731582467,0.5774133,93605.0,93603.0,0.02611867]
[1735731582696,0.5774133,93605.0,93603.0,0.02811867]
[1735731587028,0.5774133,93605.0,93604.0,0.10874807]
[1735731588269,0.5774133,93605.0,93604.0,0.11074807]
[1735731590537,0.5774133,93605.0,93604.0,0.21473439]
[1735731590762,0.5774133,93605.0,93604.0,0.26093439]
[1735731591209,0.5774133,93605.0,93604.0,0.25571736]
[1735731597086,0.5774133,93605.0,93604.0,0.02794807]
[1735731598185,0.39152787,93605.0,93604.0,0.02794807]
[1735731598429,0.5774133,93605.0,93604.0,0.02794807]
[1735731599316,0.5774133,93605.0,93604.0,0.002]
[1735731602620,0.15,93604.0,93603.0,0.0001706]
[1735731602846,0.15,93604.0,93603.0,6e-07]
[1735731603108,0.259499,93604.0,93603.0,6e-07]
[1735731603328,0.15,93604.0,93603.0,6e-07]
[1735731604285,0.15,93604.0,93603.0,0.0020006]
[1735731604537,0.2137493,93605.0,93603.0,6e-07]
[1735731604725,0.4274133,93605.0,93603.0,6e-07]
[1735731604942,0.001,93604.0,93603.0,6e-07]
[1735731605610,0.4274133,93605.0,93603.0,6e-07]
[1735731606128,0.4294133,93605.0,93603.0,6e-07]
[1735731607240,0.4274133,93605.0,93603.0,6e-07]
[1735731607478,0.001,93604.0,93603.0,6e-07]
[1735731607873,0.4274133,93605.0,93603.0,6e-07]
[1735731608792,0.4284133,93605.0,93603.0,6e-07]
[1735731608958,0.4274133,93605.0,93603.0,6e-07]
[1735731610625,0.4274133,93605.0,93604.0,0.10414807]
[1735731614428,0.4274133,93605.0,93604.0,0.10514807]
[1735731616315,0.4274133,93605.0,93604.0,0.20913439]
[1735731619563,0.4274133,93605.0,93604.0,0.30289019]
[1735731619790,0.4274133,93605.0,93604.0,0.34889019]
[1735731620856,0.4274133,93605.0,93604.0,0.34789019]
[1735731621099,0.4274133,93605.0,93604.0,0.35489019]
[1735731622606,0.4274133,93605.0,93604.0,0.35689019]
[1735731624673,0.4274133,93605.0,93604.0,0.39257927]
[1735731624952,0.2137493,93605.0,93604.0,0.39257927]
[1735731625733,8.53e-05,93605.0,93604.0,0.41557927]
[1735731629570,8.53e-05,93605.0,93604.0,0.41574987]
[1735731638781,0.213647,93612.0,93610.0,0.02594807]
[1735731638996,0.213647,93612.0,93611.0,0.26608938]
[1735731639780,0.213647,93612.0,93611.0,0.31508938]
[1735731639977,0.213637,93617.0,93611.0,0.23844121]
[1735731640178,0.213637,93617.0,93614.0,0.0768]
[1735731640393,0.213637,93617.0,93616.0,0.10274807]
[1735731640567,0.213637,93617.0,93616.0,0.20673439]
[1735731640982,0.213637,93617.0,93616.0,0.33211431]
[1735731641609,0.427274,93617.0,93616.0,0.33311431]
[1735731641930,0.427274,93617.0,93616.0,0.33211431]
[1735731642147,0.427274,93617.0,93616.0,0.33311431]
[1735731642575,0.427274,93617.0,93616.0,0.33611431]
[1735731642753,0.427274,93617.0,93616.0,0.33211431]
[1735731642978,0.427274,93617.0,93616.0,0.33611431]
[1735731643407,0.213626,93622.0,93619.0,0.14270387]
[1735731643622,0.213626,93622.0,93619.0,0.35892162]
[1735731644621,0.213626,93622.0,93619.0,0.36192162]
[1735731644852,0.213626,93622.0,93619.0,0.37092162]
[1735731645226,0.2137033,93625.0,93619.0,0.41992162]
[1735731645467,0.21361,93629.0,93621.0,0.10274807]
[1735731645663,0.213612,93628.0,93625.0,0.21950387]
[1735731645935,0.213612,93628.0,93625.0,0.32349019]
[1735731646597,8.53e-05,93632.0,93625.0,0.37249019]
[1735731646738,8.53e-05,93632.0,93625.0,0.93610819]
[1735731647199,8.53e-05,93632.0,93631.0,0.83210787]
[1735731647422,8.53e-05,93632.0,93631.0,1.04008051]
[1735731647633,8.53e-05,93639.0,93633.0,0.61850387]
[1735731647854,8.53e-05,93639.0,93633.0,0.72249019]
[1735731648274,8.53e-05,93639.0,93636.0,0.46970387]
[1735731648513,8.53e-05,93639.0,93636.0,0.72249019]
[1735731648723,8.53e-05,93639.0,93636.0,0.82647651]
[1735731649558,8.53e-05,93650.0,93636.0,0.82647651]
[1735731649559,8.53e-05,93650.0,93641.0,0.61830387]
[1735731649783,8.53e-05,93650.0,93641.0,0.72229019]
[1735731650219,0.0001553,93652.0,93651.0,0.48820387]
[1735731650481,0.0001553,93652.0,93651.0,0.64101058]
[1735731650694,0.0001553,93652.0,93651.0,0.71031058]
[1735731650904,0.0001553,93652.0,93651.0,0.71081004]
[1735731651117,0.0001553,93652.0,93651.0,0.72806405]
[1735731651540,0.213484,93684.0,93675.0,0.2437558]
[1735731651762,0.213674,93689.0,93675.0,0.54366577]
[1735731652150,0.213674,93689.0,93675.0,0.56666577]
[1735731652976,0.213482,93685.0,93675.0,0.52229019]
[1735731653177,0.0002,93689.0,93675.0,0.52229019]
[1735731653586,0.213673,93689.0,93675.0,0.53129019]
[1735731654588,0.213673,93689.0,93675.0,0.53729019]
[1735731655011,0.0002,93689.0,93675.0,0.63729019]
[1735731656910,0.0002,93689.0,93675.0,0.73729019]
[1735731657106,0.0002,93689.0,93675.0,0.84127651]
[1735731661218,0.0002,93689.0,93675.0,0.83527651]
[1735731661414,0.0002,93689.0,93675.0,0.82627651]
[1735731661676,0.0002,93689.0,93675.0,0.83427651]
[1735731662122,0.0002,93689.0,93688.0,0.19900387]
[1735731662326,0.0002,93689.0,93688.0,0.48858858]
[1735731662602,0.0002,93689.0,93688.0,0.63488858]
[1735731663069,0.0002,93689.0,93688.0,0.78488858]
[1735731663468,0.0002,93689.0,93688.0,0.79438804]
[1735731663702,0.0002,93689.0,93688.0,0.78538804]
[1735731664148,0.0002,93689.0,93688.0,0.79438804]
[1735731664370,0.0002,93689.0,93688.0,0.78538804]
[1735731664558,0.0002,93689.0,93688.0,0.79938804]
[1735731664881,0.0002,93689.0,93688.0,0.79438804]
[1735731665093,0.0002,93689.0,93688.0,0.46248965]
[1735731665330,0.0002,93689.0,93688.0,0.23318965]
[1735731665551,0.21516074,93689.0,93688.0,0.23318965]
[1735731665796,0.213672,93689.0,93688.0,0.23218965]
[1735731666006,0.2918451,93689.0,93688.0,0.03444753]
[1735731666227,0.2918451,93689.0,93688.0,0.03544753]
[1735731666228,0.26454594,93689.0,93688.0,0.03544753]
[1735731666451,0.26454594,93689.0,93688.0,0.00049946]
[1735731666662,0.26454594,93689.0,93688.0,0.03544753]
[1735731667123,0.26454594,93689.0,93688.0,0.13043385]
[1735731667355,0.2137572,93689.0,93688.0,0.22418965]
[1735731667572,0.2137572,93689.0,93688.0,0.22918965]
[1735731668201,0.2137572,93689.0,93688.0,0.22418965]
[1735731668378,0.2137572,93689.0,93688.0,0.22518965]
[1735731668791,0.2137572,93689.0,93688.0,0.22418965]
[1735731669509,0.0002852,93689.0,93688.0,0.26960862]
[1735731669717,0.0002852,93689.0,93688.0,0.27060862]
[1735731669929,0.0002852,93689.0,93688.0,0.24818965]
[1735731670140,0.0002852,93689.0,93688.0,0.25718965]
[1735731670567,0.0002852,93689.0,93688.0,0.24818965]
[1735731670810,0.0002852,93689.0,93688.0,0.25718965]
[1735731671465,0.0002852,93689.0,93688.0,0.25618965]
[1735731671886,0.0002852,93689.0,93688.0,0.26018965]
[1735731672309,0.0002852,93689.0,93688.0,0.25618965]
[1735731672546,0.0002852,93689.0,93688.0,0.26018965]
[1735731674255,0.0002852,93689.0,93688.0,0.25118965]
[1735731674422,0.0002852,93689.0,93688.0,0.26018965]
[1735731675084,0.0002852,93689.0,93688.0,0.25618965]
[1735731675527,0.0002852,93689.0,93688.0,0.26018965]
[1735731676802,0.0002852,93689.0,93688.0,0.27749225]
[1735731677679,0.213467,93692.0,93690.0,0.02594807]
[1735731677892,0.213467,93692.0,93691.0,0.15293439]
[1735731679396,0.213467,93692.0,93691.0,0.12993439]
[1735731679607,0.213467,93692.0,93691.0,0.13293439]
[1735731680796,0.213467,93692.0,93691.0,0.14193439]
[1735731682748,0.213467,93692.0,93691.0,0.23569019]
[1735731683981,0.213467,93692.0,93691.0,0.14193439]
[1735731684396,0.213467,93692.0,93691.0,0.13893439]
[1735731684684,0.213467,93692.0,93691.0,0.13293439]
[1735731684933,0.213456,93697.0,93691.0,0.23569019]
[1735731685139,0.213456,93696.0,93691.0,0.23569019]
[1735731685348,0.426913,93696.0,93691.0,0.23569019]
[1735731685553,0.213465,93692.0,93691.0,0.23569019]
[1735731685730,0.213465,93692.0,93691.0,0.23269019]
[1735731686146,0.213465,93692.0,93691.0,0.23469019]
[1735731686344,0.213465,93692.0,93691.0,0.22569019]
[1735731686568,0.213465,93692.0,93691.0,0.23369019]
[1735731686747,0.213447,93700.0,93691.0,0.23369019]
[1735731686948,0.213447,93700.0,93691.0,0.22569019]
[1735731687109,0.213447,93700.0,93691.0,0.23469019]
[1735731687523,0.213463,93693.0,93691.0,0.23269019]
[1735731687738,0.213463,93693.0,93691.0,0.23569019]
[1735731688142,0.213463,93693.0,93691.0,0.23269019]
[1735731688522,0.213463,93693.0,93691.0,0.22569019]
[1735731688764,0.213463,93693.0,93691.0,0.13193439]
[1735731689198,0.213463,93693.0,93691.0,0.12993439]
[1735731689415,8.52e-05,93692.0,93691.0,0.13293439]
[1735731689804,8.52e-05,93692.0,93691.0,0.2494262]
[1735731690024,8.52e-05,93692.0,93691.0,0.2554262]
[1735731690246,8.52e-05,93692.0,93691.0,0.22669019]
[1735731690592,8.52e-05,93692.0,93691.0,0.23569019]
[1735731690786,8.52e-05,93692.0,93691.0,0.22669019]
[1735731691191,8.52e-05,93692.0,93691.0,0.23269019]
[1735731691625,8.52e-05,93692.0,93691.0,0.31169019]
[1735731692035,8.52e-05,93692.0,93691.0,0.30869019]
[1735731692447,8.52e-05,93692.0,93691.0,0.31269019]
[1735731692891,8.52e-05,93692.0,93691.0,0.29969019]
[1735731693098,8.52e-05,93692.0,93691.0,0.30869019]
[1735731693634,8.52e-05,93692.0,93691.0,0.31469019]
[1735731696505,8.52e-05,93692.0,93691.0,0.30869019]
[1735731696909,8.52e-05,93692.0,93691.0,0.31469019]
[1735731697327,8.52e-05,93692.0,93691.0,0.36585426]
[1735731697587,8.52e-05,93692.0,93691.0,0.37485426]
[1735731697801,8.52e-05,93692.0,93691.0,0.39785426]
[1735731698461,8.52e-05,93692.0,93691.0,0.39185426]
[1735731698727,8.52e-05,93692.0,93691.0,0.50475426]
[1735731698994,8.52e-05,93692.0,93691.0,0.39185426]
[1735731699265,8.52e-05,93692.0,93691.0,0.33769019]
[1735731699499,8.52e-05,93692.0,93691.0,0.32869019]
[1735731699732,8.52e-05,93692.0,93691.0,0.33169019]
[1735731699944,8.52e-05,93692.0,93691.0,0.33969019]
[1735731700224,8.52e-05,93692.0,93691.0,0.33069019]
[1735731700469,8.52e-05,93692.0,93691.0,0.43484691]
[1735731700674,8.52e-05,93692.0,93691.0,0.44384691]
[1735731701559,8.52e-05,93692.0,93691.0,0.54384691]
[1735731701984,8.52e-05,93692.0,93691.0,0.53584691]
[1735731702195,8.52e-05,93692.0,93691.0,0.54384691]
[1735731702603,8.52e-05,93692.0,93691.0,0.52684691]
[1735731703030,8.52e-05,93692.0,93691.0,0.54384691]
[1735731703435,8.52e-05,93692.0,93691.0,0.43186059]
[1735731703868,8.52e-05,93692.0,93691.0,0.43986059]
[1735731707026,8.52e-05,93692.0,93691.0,0.58916059]
[1735731707889,8.52e-05,93692.0,93691.0,0.60645991]
[1735731708321,8.52e-05,93692.0,93691.0,0.71935991]
[1735731708582,8.52e-05,93696.0,93695.0,0.43260387]
[1735731708791,8.52e-05,93696.0,93695.0,0.69079019]
[1735731710521,8.52e-05,93696.0,93695.0,0.70879019]
[1735731710767,8.53e-05,93711.0,93710.0,0.43312787]
[1735731711013,8.53e-05,93711.0,93710.0,0.69131419]
[1735731711212,8.53e-05,93711.0,93710.0,0.79530051]
[1735731711479,8.53e-05,93711.0,93710.0,0.89530051]
[1735731711693,8.53e-05,93711.0,93710.0,0.55887651]
[1735731711930,8.53e-05,93711.0,93710.0,0.45489019]
[1735731712161,8.53e-05,93711.0,93710.0,0.35489019]
[1735731712445,8.53e-05,93711.0,93710.0,0.22369019]
[1735731712936,8.53e-05,93711.0,93710.0,0.23269019]
[1735731713191,0.2135073,93711.0,93710.0,0.23269019]
[1735731713687,0.2135073,93711.0,93710.0,0.23069019]
[1735731714182,8.53e-05,93711.0,93710.0,0.23269019]
[1735731714433,8.53e-05,93711.0,93710.0,0.23069019]
[1735731714684,8.53e-05,93711.0,93710.0,0.27275921]
[1735731714936,8.53e-05,93711.0,93710.0,0.23969019]
[1735731715621,8.53e-05,93711.0,93710.0,0.23269019]
[1735731715807,8.53e-05,93711.0,93710.0,0.22369019]
[1735731716003,8.53e-05,93711.0,93710.0,0.23069019]
[1735731716209,8.53e-05,93711.0,93710.0,0.23969019]
[1735731716419,8.53e-05,93711.0,93710.0,0.22369019]
[1735731716627,0.2135073,93711.0,93710.0,0.22369019]
[1735731716822,0.2135073,93711.0,93710.0,0.23969019]
[1735731717178,8.53e-05,93711.0,93710.0,0.23969019]
[1735731717382,8.53e-05,93711.0,93710.0,0.22369019]
[1735731717817,8.53e-05,93711.0,93710.0,0.23269019]
[1735731718792,8.53e-05,93711.0,93710.0,0.14593439]
[1735731718995,0.1500853,93711.0,93710.0,0.23969019]
[1735731719256,0.1500853,93711.0,93710.0,0.23269019]
[1735731719636,0.1500853,93711.0,93710.0,0.23069019]
[1735731719842,0.1500853,93711.0,93710.0,0.23969019]
[1735731720040,0.1500853,93711.0,93710.0,0.22369019]
[1735731720250,0.1500853,93711.0,93710.0,0.12993439]
[1735731720490,0.15118375,93711.0,93710.0,0.14393439]
[1735731720839,0.15118375,93711.0,93710.0,0.13493439]
[1735731721040,0.15118375,93711.0,93710.0,0.14393439]
[1735731721041,0.1500853,93711.0,93710.0,0.14393439]
[1735731721445,0.1500853,93711.0,93710.0,0.13493439]
[1735731721667,0.1500853,93711.0,93710.0,0.12993439]
[1735731722097,0.1500853,93711.0,93710.0,0.13493439]
[1735731722464,0.1500853,93711.0,93710.0,0.12993439]
[1735731722689,0.1500853,93711.0,93710.0,0.13793439]
[1735731722915,0.1500853,93711.0,93710.0,0.13993439]
[1735731723169,0.1500853,93711.0,93710.0,0.13193439]
[1735731723390,0.1500853,93711.0,93710.0,0.13593439]
[1735731723624,0.1500853,93711.0,93710.0,0.13793439]
[1735731725033,0.1500853,93711.0,93710.0,0.13593439]
[1735731725464,0.1500853,93711.0,93710.0,0.13793439]
[1735731725867,0.1420853,93711.0,93710.0,0.13193424]
[1735731726085,0.1420853,93711.0,93710.0,0.13793424]
[1735731732204,0.1420853,93711.0,93710.0,0.13593424]
[1735731732424,0.1420853,93711.0,93710.0,0.13193424]
[1735731733317,0.1420853,93711.0,93710.0,0.13793424]
[1735731733999,0.1420853,93711.0,93710.0,0.13193424]
[1735731734204,0.1420853,93711.0,93710.0,0.12993424]
[1735731734415,0.1420853,93711.0,93710.0,0.13193424]
[1735731734850,0.1420853,93711.0,93710.0,0.12993424]
[1735731735488,0.1420853,93711.0,93710.0,0.13593424]
[1735731735758,0.1420853,93711.0,93710.0,0.13693424]
[1735731735987,0.1420853,93711.0,93710.0,0.13093424]
[1735731736694,0.1420853,93711.0,93710.0,0.13593424]
[1735731736916,0.1420853,93711.0,93710.0,0.13093424]
[1735731737379,0.1420853,93711.0,93710.0,0.13493424]
[1735731737579,0.1421705,93711.0,93710.0,0.13493424]
[1735731738009,0.1421705,93711.0,93710.0,0.13593424]
[1735731738476,0.1421705,93711.0,93710.0,0.13493424]
[1735731738917,0.1421705,93711.0,93710.0,0.13593424]
[1735731740689,0.1421705,93711.0,93710.0,0.12993424]
[1735731740931,0.1421705,93711.0,93710.0,0.13193424]
[1735731742133,0.1421705,93711.0,93710.0,0.13693424]
[1735731745588,0.14243822,93711.0,93710.0,0.13693424]
[1735731746433,0.1421705,93711.0,93710.0,0.13493424]
[1735731746842,0.1421705,93711.0,93710.0,0.12993424]
[1735731747696,0.0062442,93708.0,93696.0,4e-07]
[1735731747927,0.363454,93697.0,93696.0,4e-07]
[1735731749355,0.363454,93697.0,93696.0,0.10398672]
[1735731749504,0.363454,93697.0,93696.0,0.10898672]
[1735731750691,0.363454,93697.0,93696.0,0.10998672]
[1735731751949,0.15,93698.0,93696.0,0.10998672]
[1735731752172,0.622,93698.0,93697.0,0.10398632]
[1735731752372,0.568,93698.0,93697.0,0.10398632]
[1735731753516,0.347,93698.0,93697.0,0.10398632]
[1735731754259,0.347,93698.0,93697.0,0.10498632]
[1735731754467,0.15,93698.0,93697.0,0.10498632]
[1735731754595,0.324,93698.0,93697.0,0.10498632]
[1735731755694,0.324,93698.0,93697.0,0.10898632]
[1735731758843,0.15,93698.0,93697.0,0.10398632]
[1735731761188,0.1500853,93698.0,93697.0,0.10398632]
[1735731761681,8.53e-05,93698.0,93697.0,0.33665783]
[1735731762748,8.53e-05,93698.0,93697.0,0.33765783]
[1735731762952,8.53e-05,93698.0,93697.0,0.33324212]
[1735731763152,8.53e-05,93698.0,93697.0,0.33224212]
[1735731763581,8.53e-05,93698.0,93697.0,0.33724212]
[1735731764573,8.53e-05,93698.0,93697.0,0.33124212]
[1735731764840,8.53e-05,93698.0,93697.0,0.36438341]
[1735731765057,8.53e-05,93698.0,93697.0,0.37338341]
[1735731765481,8.53e-05,93698.0,93697.0,0.34024212]
[1735731773936,8.53e-05,93698.0,93697.0,0.34041272]
[1735731778921,0.2135363,93698.0,93697.0,0.34041272]
[1735731786307,0.2135363,93698.0,93697.0,0.32641272]
[1735731786570,0.2135363,93698.0,93697.0,0.33141272]
[1735731786799,0.2135363,93698.0,93697.0,0.34041272]
[1735731789742,0.2135363,93698.0,93697.0,0.33541272]
[1735731789961,0.2135363,93698.0,93697.0,0.32641272]
[1735731790082,0.2135363,93698.0,93697.0,0.33141272]
[1735731790831,8.53e-05,93698.0,93697.0,0.33141272]
[1735731791279,8.53e-05,93698.0,93697.0,0.34041272]
[1735731791737,8.53e-05,93698.0,93697.0,0.37447107]
[1735731791933,8.53e-05,93698.0,93697.0,0.33141272]
[1735731792341,8.53e-05,93698.0,93697.0,0.34041272]
[1735731792776,8.53e-05,93698.0,93697.0,0.33141272]
[1735731792989,8.53e-05,93698.0,93697.0,0.34041272]
[1735731793183,8.53e-05,93698.0,93697.0,0.33541272]
[1735731793301,8.53e-05,93698.0,93697.0,0.33941272]
[1735731794117,8.53e-05,93698.0,93697.0,0.33041272]
[1735731794456,8.53e-05,93698.0,93697.0,0.33941272]
[1735731794659,8.53e-05,93698.0,93697.0,0.32641272]
[1735731795095,8.53e-05,93698.0,93697.0,0.33541272]
[1735731795295,8.53e-05,93698.0,93697.0,0.32641272]
[1735731795506,8.53e-05,93698.0,93697.0,0.34041272]
[1735731795936,8.53e-05,93698.0,93697.0,0.33141272]
[1735731796172,8.53e-05,93698.0,93697.0,0.34041272]
[1735731796391,8.53e-05,93698.0,93697.0,0.28981272]
[1735731797008,8.53e-05,93698.0,93697.0,0.11715692]
[1735731797231,8.53e-05,93698.0,93697.0,0.21091272]
[1735731797433,8.53e-05,93698.0,93697.0,0.20191272]
[1735731797874,8.53e-05,93698.0,93697.0,0.21091272]
[1735731798082,8.53e-05,93698.0,93697.0,0.20191272]
[1735731798189,8.53e-05,93698.0,93697.0,0.19791272]
[1735731798391,8.53e-05,93698.0,93697.0,0.20691272]
[1735731798638,8.53e-05,93698.0,93697.0,0.21191272]
[1735731799219,8.53e-05,93698.0,93697.0,0.20691272]
[1735731799401,8.53e-05,93698.0,93697.0,0.21991272]
[1735731799987,8.53e-05,93698.0,93697.0,0.21591272]
[1735731800251,8.53e-05,93698.0,93697.0,0.22091272]
[1735731801011,8.53e-05,93698.0,93697.0,0.20291272]
[1735731801220,8.53e-05,93698.0,93697.0,0.21191272]
[1735731801643,8.53e-05,93698.0,93697.0,0.19791272]
[1735731801867,8.53e-05,93698.0,93697.0,0.20691272]
[1735731802048,8.53e-05,93698.0,93697.0,0.21091272]
[1735731802299,8.53e-05,93698.0,93697.0,0.20191272]
[1735731802501,8.53e-05,93698.0,93697.0,0.20591272]
[1735731802942,8.53e-05,93698.0,93697.0,0.20091272]
[1735731803362,8.53e-05,93698.0,93697.0,0.19791272]
[1735731803564,8.53e-05,93698.0,93697.0,0.20191272]
[1735731804207,8.53e-05,93698.0,93697.0,0.21091272]
[1735731804619,8.53e-05,93698.0,93697.0,0.20191272]
[1735731804833,8.53e-05,93698.0,93697.0,0.20591272]
[1735731805044,8.53e-05,93698.0,93697.0,0.19791272]
[1735731805254,8.53e-05,93698.0,93697.0,0.10715692]
[1735731805970,8.53e-05,93698.0,93697.0,0.11615692]
[1735731806187,8.53e-05,93698.0,93697.0,0.11315692]
[1735731806627,8.53e-05,93698.0,93697.0,0.11615692]
[1735731807336,8.53e-05,93698.0,93697.0,0.10715692]
[1735731807555,8.53e-05,93698.0,93697.0,0.11515692]
[1735731807749,8.53e-05,93698.0,93697.0,0.10715692]
[1735731807987,8.53e-05,93698.0,93697.0,0.10415692]
[1735731808178,8.53e-05,93698.0,93697.0,0.10915692]
[1735731808330,8.53e-05,93698.0,93697.0,0.11015692]
[1735731813478,8.53e-05,93698.0,93697.0,0.10515692]
[1735731813700,8.53e-05,93698.0,93697.0,0.11015692]
[1735731814097,8.53e-05,93698.0,93697.0,0.33684549]
[1735731814299,8.53e-05,93698.0,93697.0,0.34184549]
[1735731814548,8.53e-05,93698.0,93697.0,0.34284549]
[1735731815180,8.53e-05,93698.0,93697.0,0.33284549]
[1735731815381,8.53e-05,93698.0,93697.0,0.32581272]
[1735731815790,8.53e-05,93698.0,93697.0,0.32681272]
[1735731816748,8.53e-05,93698.0,93697.0,0.32181272]
[1735731817179,8.53e-05,93698.0,93697.0,0.33081272]
[1735731817525,8.53e-05,93698.0,93697.0,0.32081272]
[1735731817628,8.53e-05,93698.0,93697.0,0.32981272]
[1735731817844,8.53e-05,93698.0,93697.0,0.33481272]
[1735731818743,0.21335345,93706.0,93697.0,0.36831107]
[1735731818944,0.21335345,93706.0,93701.0,0.10398632]
[1735731820593,8.52e-05,93711.0,93710.0,0.0937558]
[1735731820747,8.52e-05,93711.0,93710.0,0.32064212]
[1735731822638,8.52e-05,93711.0,93710.0,0.33164212]
[1735731823420,0.2135072,93711.0,93710.0,0.33164212]
[1735731826983,8.52e-05,93711.0,93710.0,0.33164212]
[1735731827183,0.32561119,93716.0,93715.0,0.0937558]
[1735731827390,0.32561119,93716.0,93715.0,0.19774212]
[1735731828265,0.34861119,93716.0,93715.0,0.10398632]
[1735731829036,0.34861119,93716.0,93715.0,0.10598632]
[1735731829277,0.3506243,93716.0,93715.0,0.10598632]
[1735731829500,0.34861119,93716.0,93715.0,0.002]
[1735731829674,0.21344,93703.0,93702.0,0.08820919]
[1735731829913,0.21344,93703.0,93702.0,0.19219551]
[1735731831210,0.21344,93703.0,93702.0,0.20119551]
[1735731831475,0.21344,93703.0,93702.0,0.19219551]
[1735731831725,0.21344,93703.0,93702.0,0.20119551]
[1735731831963,0.21344,93703.0,93702.0,0.19219551]
[1735731832438,0.21344,93703.0,93702.0,0.20119551]
[1735731832811,0.21344,93703.0,93702.0,0.20519551]
[1735731833274,0.21344,93703.0,93702.0,0.20119551]
[1735731833769,0.21344,93703.0,93702.0,0.19219551]
[1735731834011,0.21344,93703.0,93702.0,0.20119551]
[1735731834688,0.21344,93703.0,93702.0,0.20519551]
[1735731836277,0.21344,93703.0,93702.0,0.20119551]